[Event "Titled Tuesday Blitz August 22 Late 2023"]
[White "GaiozNigalidze"]
[Black "JerMorGurgeh"]
[WhiteElo "2687"]
[BlackElo "2391"]
[Result "1-0"]
[Round "1"]
[TimeControl "180+1"]
[Date "2023.08.22"]
[WhiteClock "0:00:10"]
[BlackClock "0:00:00"]
[Board "110"]

1. d4 {[%clk 0:03:00]}  e6 {[%clk 0:02:59]} 2. c4 {[%clk 0:03:01]}  Nf6 {[%clk 0:02:58]} 3. Nc3 {[%clk 0:03:01]}  Bb4 {[%clk 0:02:57]} 4. f3 {[%clk 0:03:01]}  d5 {[%clk 0:02:54]} 5. a3 {[%clk 0:02:58]}  Bxc3+ {[%clk 0:02:53]} 6. bxc3 {[%clk 0:02:58]}  c5 {[%clk 0:02:52]} 7. cxd5 {[%clk 0:02:55]}  Nxd5 {[%clk 0:02:51]} 8. dxc5 {[%clk 0:02:55]}  Qa5 {[%clk 0:02:50]} 9. e4 {[%clk 0:02:50]}  Nf6 {[%clk 0:02:49]} 10. Be3 {[%clk 0:02:45]}  Nfd7 {[%clk 0:02:40]} 11. Qd4 {[%clk 0:02:31]}  O-O {[%clk 0:02:28]} 12. Qb4 {[%clk 0:02:28]}  Qc7 {[%clk 0:02:27]} 13. Nh3 {[%clk 0:02:22]}  b6 {[%clk 0:02:19]} 14. cxb6 {[%clk 0:02:07]}  axb6 {[%clk 0:02:20]} 15. Bb5 {[%clk 0:02:06]}  Ba6 {[%clk 0:02:09]} 16. c4 {[%clk 0:01:41]}  Nc6 {[%clk 0:01:58]} 17. Qc3 {[%clk 0:01:08]}  Nce5 {[%clk 0:01:51]} 18. Bxa6 {[%clk 0:00:56]}  Rxa6 {[%clk 0:01:49]} 19. Bd4 {[%clk 0:00:57]}  Rc8 {[%clk 0:01:38]} 20. O-O {[%clk 0:00:42]}  Qxc4 {[%clk 0:01:26]} 21. Qe3 {[%clk 0:00:40]}  Nd3 {[%clk 0:01:17]} 22. Rfd1 {[%clk 0:00:35]}  N7c5 {[%clk 0:01:09]} 23. Bxc5 {[%clk 0:00:26]}  Nxc5 {[%clk 0:01:08]} 24. Rac1 {[%clk 0:00:26]}  Qa4 {[%clk 0:01:04]} 25. Qd2 {[%clk 0:00:26]}  h6 {[%clk 0:01:00]} 26. Rc3 {[%clk 0:00:25]}  Kh7 {[%clk 0:00:54]} 27. Nf4 {[%clk 0:00:22]}  Nb3 {[%clk 0:00:44]} 28. Qc2 {[%clk 0:00:15]}  Rxc3 {[%clk 0:00:40]} 29. Qxc3 {[%clk 0:00:16]}  Nc5 {[%clk 0:00:36]} 30. Rb1 {[%clk 0:00:14]}  Qc6 {[%clk 0:00:23]} 31. Nh5 {[%clk 0:00:10]}  f6 {[%clk 0:00:20]} 32. Nf4 {[%clk 0:00:10]}  Ra7 {[%clk 0:00:19]} 33. Nd3 {[%clk 0:00:10]}  Rc7 {[%clk 0:00:18]} 34. Nb4 {[%clk 0:00:10]}  Qb5 {[%clk 0:00:17]} 35. Qe3 {[%clk 0:00:11]}  Na4 {[%clk 0:00:16]} 36. Rd1 {[%clk 0:00:10]}  Qc5 {[%clk 0:00:14]} 37. Qxc5 {[%clk 0:00:10]}  Nxc5 {[%clk 0:00:13]} 38. Rc1 {[%clk 0:00:09]}  Ra7 {[%clk 0:00:12]} 39. Rc3 {[%clk 0:00:09]}  Kg6 {[%clk 0:00:09]} 40. Kf2 {[%clk 0:00:09]}  Kf7 {[%clk 0:00:08]} 41. Ke3 {[%clk 0:00:10]}  Ke8 {[%clk 0:00:09]} 42. Nc6 {[%clk 0:00:10]}  Ra4 {[%clk 0:00:07]} 43. Nd4 {[%clk 0:00:09]}  Kd7 {[%clk 0:00:05]} 44. h4 {[%clk 0:00:10]}  g6 {[%clk 0:00:04]} 45. h5 {[%clk 0:00:10]}  gxh5 {[%clk 0:00:00]} 46. Ne2 {[%clk 0:00:10]} 1-0


[Site "https://www.chess.com"]

[Event "Titled Tuesday Blitz August 22 Late 2023"]
[White "Ozalp, Burak"]
[Black "Hjartarson, Johann"]
[WhiteFideId "6314210"]
[BlackFideId "2300044"]
[WhiteElo "2391"]
[BlackElo "2687"]
[Result "0-1"]
[Round "1"]
[TimeControl "180+1"]
[Date "2023.08.22"]
[WhiteClock "0:01:48"]
[BlackClock "0:02:14"]
[Board "111"]

1. e4 {[%clk 0:02:59]}  e5 {[%clk 0:02:58]} 2. Nf3 {[%clk 0:02:58]}  Nc6 {[%clk 0:02:58]} 3. Bb5 {[%clk 0:02:58]}  a6 {[%clk 0:02:58]} 4. Ba4 {[%clk 0:02:58]}  Nf6 {[%clk 0:02:58]} 5. O-O {[%clk 0:02:57]}  Be7 {[%clk 0:02:56]} 6. Qe2 {[%clk 0:02:57]}  b5 {[%clk 0:02:55]} 7. Bb3 {[%clk 0:02:56]}  O-O {[%clk 0:02:54]} 8. c3 {[%clk 0:02:56]}  Bb7 {[%clk 0:02:50]} 9. h3 {[%clk 0:02:50]}  d5 {[%clk 0:02:48]} 10. d3 {[%clk 0:02:49]}  Re8 {[%clk 0:02:43]} 11. Rd1 {[%clk 0:02:48]}  Bf8 {[%clk 0:02:33]} 12. Nbd2 {[%clk 0:02:42]}  Na5 {[%clk 0:02:30]} 13. Bc2 {[%clk 0:02:33]}  c5 {[%clk 0:02:30]} 14. Nf1 {[%clk 0:02:27]}  h6 {[%clk 0:02:29]} 15. Ng3 {[%clk 0:02:25]}  Qc7 {[%clk 0:02:28]} 16. Nf5 {[%clk 0:02:23]}  c4 {[%clk 0:02:20]} 17. exd5 {[%clk 0:01:56]}  Bxd5 {[%clk 0:02:18]} 18. d4 {[%clk 0:01:50]}  exd4 {[%clk 0:02:14]} 19. Qf1 {[%clk 0:01:48]}  d3 {[%clk 0:02:14]} 0-1


[Site "https://www.chess.com"]

[Event "Titled Tuesday Blitz August 22 Late 2023"]
[White "Korchmar, Vasiliy"]
[Black "Hague, Ben"]
[WhiteFideId "24131750"]
[BlackFideId "405647"]
[WhiteElo "2675"]
[BlackElo "2381"]
[Result "0-1"]
[Round "1"]
[TimeControl "180+1"]
[Date "2023.08.22"]
[WhiteClock "0:00:00"]
[BlackClock "0:00:16"]
[Board "116"]

1. e4 {[%clk 0:03:00]}  c5 {[%clk 0:02:58]} 2. Nc3 {[%clk 0:02:59]}  Nc6 {[%clk 0:02:58]} 3. Nf3 {[%clk 0:02:56]}  e5 {[%clk 0:02:58]} 4. Bc4 {[%clk 0:02:48]}  Be7 {[%clk 0:02:58]} 5. d3 {[%clk 0:02:47]}  d6 {[%clk 0:02:58]} 6. O-O {[%clk 0:02:44]}  Nf6 {[%clk 0:02:58]} 7. Bg5 {[%clk 0:02:42]}  O-O {[%clk 0:02:56]} 8. h3 {[%clk 0:02:09]}  Nd7 {[%clk 0:02:48]} 9. Be3 {[%clk 0:02:01]}  Nb6 {[%clk 0:02:45]} 10. Nd2 {[%clk 0:01:47]}  Kh8 {[%clk 0:02:40]} 11. f4 {[%clk 0:01:47]}  exf4 {[%clk 0:02:38]} 12. Bxf4 {[%clk 0:01:47]}  Bf6 {[%clk 0:02:36]} 13. Qh5 {[%clk 0:01:41]}  Be6 {[%clk 0:02:23]} 14. Bxe6 {[%clk 0:01:32]}  fxe6 {[%clk 0:02:21]} 15. Qg4 {[%clk 0:01:22]}  Nd4 {[%clk 0:02:08]} 16. Rac1 {[%clk 0:01:21]}  Qe7 {[%clk 0:01:59]} 17. Be3 {[%clk 0:01:12]}  Rad8 {[%clk 0:01:52]} 18. Nf3 {[%clk 0:01:12]}  Nxf3+ {[%clk 0:01:35]} 19. Rxf3 {[%clk 0:01:13]}  Bxc3 {[%clk 0:01:30]} 20. bxc3 {[%clk 0:01:13]}  Rxf3 {[%clk 0:01:29]} 21. Qxf3 {[%clk 0:01:13]}  Rf8 {[%clk 0:01:28]} 22. Qg3 {[%clk 0:01:13]}  Nd7 {[%clk 0:01:24]} 23. Bf4 {[%clk 0:01:10]}  e5 {[%clk 0:01:23]} 24. Bg5 {[%clk 0:01:06]}  Qf7 {[%clk 0:01:22]} 25. c4 {[%clk 0:01:04]}  h6 {[%clk 0:01:21]} 26. Be3 {[%clk 0:01:03]}  Nb8 {[%clk 0:01:19]} 27. Rb1 {[%clk 0:01:03]}  b6 {[%clk 0:01:19]} 28. a4 {[%clk 0:01:02]}  Nc6 {[%clk 0:01:18]} 29. Qg4 {[%clk 0:00:59]}  Kh7 {[%clk 0:01:12]} 30. Re1 {[%clk 0:00:43]}  Nd4 {[%clk 0:01:02]} 31. Rc1 {[%clk 0:00:39]}  Qe8 {[%clk 0:00:46]} 32. c3 {[%clk 0:00:35]}  Ne6 {[%clk 0:00:44]} 33. Ra1 {[%clk 0:00:29]}  Nf4 {[%clk 0:00:43]} 34. Bxf4 {[%clk 0:00:22]}  Rxf4 {[%clk 0:00:42]} 35. Qe2 {[%clk 0:00:22]}  Qf7 {[%clk 0:00:36]} 36. a5 {[%clk 0:00:21]}  bxa5 {[%clk 0:00:26]} 37. Rxa5 {[%clk 0:00:22]}  Qb7 {[%clk 0:00:26]} 38. Qa2 {[%clk 0:00:17]}  Rf7 {[%clk 0:00:22]} 39. Ra6 {[%clk 0:00:16]}  Qe7 {[%clk 0:00:21]} 40. Qd2 {[%clk 0:00:10]}  Qb7 {[%clk 0:00:20]} 41. Qa2 {[%clk 0:00:10]}  Qe7 {[%clk 0:00:20]} 42. Qe2 {[%clk 0:00:06]}  Qb7 {[%clk 0:00:19]} 43. Ra1 {[%clk 0:00:06]}  Qb3 {[%clk 0:00:18]} 44. Rc1 {[%clk 0:00:03]}  a5 {[%clk 0:00:18]} 45. h4 {[%clk 0:00:03]}  a4 {[%clk 0:00:18]} 46. h5 {[%clk 0:00:04]}  a3 {[%clk 0:00:17]} 47. Qg4 {[%clk 0:00:04]}  Rf6 {[%clk 0:00:17]} 48. Qc8 {[%clk 0:00:01]}  Qb2 {[%clk 0:00:16]} 49. Rd1 {[%clk 0:00:01]}  a2 {[%clk 0:00:16]} 50. Qa8 {[%clk 0:00:00]}  Rf2 {[%clk 0:00:16]} 0-1


[Site "https://www.chess.com"]

[Event "Titled Tuesday Blitz August 22 Late 2023"]
[White "Delorme, Axel"]
[Black "Tatarinov, Dmitry"]
[WhiteFideId "632023"]
[BlackFideId "24160067"]
[WhiteElo "2380"]
[BlackElo "2675"]
[Result "0-1"]
[Round "1"]
[TimeControl "180+1"]
[Date "2023.08.22"]
[WhiteClock "0:01:16"]
[BlackClock "0:02:00"]
[Board "117"]

1. d4 {[%clk 0:02:58]}  Nf6 {[%clk 0:02:59]} 2. Nf3 {[%clk 0:02:59]}  e6 {[%clk 0:03:00]} 3. g3 {[%clk 0:03:00]}  d5 {[%clk 0:03:00]} 4. Bg2 {[%clk 0:03:00]}  b5 {[%clk 0:02:58]} 5. O-O {[%clk 0:03:00]}  Be7 {[%clk 0:02:56]} 6. a4 {[%clk 0:03:00]}  b4 {[%clk 0:02:54]} 7. c4 {[%clk 0:03:01]}  bxc3 {[%clk 0:02:53]} 8. Nxc3 {[%clk 0:03:01]}  O-O {[%clk 0:02:53]} 9. Bf4 {[%clk 0:03:01]}  Na6 {[%clk 0:02:41]} 10. Rc1 {[%clk 0:02:53]}  c5 {[%clk 0:02:40]} 11. Nb5 {[%clk 0:02:51]}  Bb7 {[%clk 0:02:38]} 12. dxc5 {[%clk 0:02:29]}  Nxc5 {[%clk 0:02:33]} 13. Nfd4 {[%clk 0:02:23]}  a6 {[%clk 0:02:31]} 14. Nc3 {[%clk 0:02:22]}  Qb6 {[%clk 0:02:30]} 15. Qd2 {[%clk 0:02:05]}  Rac8 {[%clk 0:02:29]} 16. a5 {[%clk 0:01:59]}  Qb4 {[%clk 0:02:22]} 17. Nxd5 {[%clk 0:01:50]}  Nxd5 {[%clk 0:02:18]} 18. Qxb4 {[%clk 0:01:42]}  Nxb4 {[%clk 0:02:19]} 19. Rc4 {[%clk 0:01:29]}  Bxg2 {[%clk 0:02:18]} 20. Kxg2 {[%clk 0:01:29]}  Nb7 {[%clk 0:02:13]} 21. Rfc1 {[%clk 0:01:28]}  Rxc4 {[%clk 0:02:12]} 22. Rxc4 {[%clk 0:01:28]}  Nxa5 {[%clk 0:02:11]} 23. Rc7 {[%clk 0:01:27]}  Nd5 {[%clk 0:02:12]} 24. Ra7 {[%clk 0:01:22]}  Nxf4+ {[%clk 0:02:06]} 25. gxf4 {[%clk 0:01:22]}  Bc5 {[%clk 0:02:06]} 26. Rxa6 {[%clk 0:01:21]}  Bxd4 {[%clk 0:02:05]} 27. Rxa5 {[%clk 0:01:21]}  Bxb2 {[%clk 0:02:06]} 28. e3 {[%clk 0:01:21]}  Bf6 {[%clk 0:02:07]} 29. Kf3 {[%clk 0:01:20]}  g6 {[%clk 0:02:07]} 30. Rb5 {[%clk 0:01:20]}  Rc8 {[%clk 0:02:07]} 31. Rb7 {[%clk 0:01:21]}  Rc2 {[%clk 0:02:08]} 32. Kg3 {[%clk 0:01:19]}  Kg7 {[%clk 0:02:07]} 33. Rd7 {[%clk 0:01:19]}  h5 {[%clk 0:02:06]} 34. Rb7 {[%clk 0:01:17]}  e5 {[%clk 0:02:06]} 35. fxe5 {[%clk 0:01:16]}  Bxe5+ {[%clk 0:02:06]} 36. f4 {[%clk 0:01:17]}  Bd6 {[%clk 0:02:04]} 37. Rd7 {[%clk 0:01:17]}  Bc5 {[%clk 0:02:04]} 38. e4 {[%clk 0:01:17]}  Bg1 {[%clk 0:01:59]} 39. h3 {[%clk 0:01:17]}  Bh2+ {[%clk 0:01:59]} 40. Kf3 {[%clk 0:01:17]}  Rc3+ {[%clk 0:01:59]} 41. Kg2 {[%clk 0:01:16]}  Bxf4 {[%clk 0:02:00]} 0-1


[Site "https://www.chess.com"]

[Event "Titled Tuesday Blitz August 22 Late 2023"]
[White "Ghasi, Ameet K"]
[Black "Gaboyan, Susanna"]
[WhiteFideId "409200"]
[BlackFideId "13303627"]
[WhiteElo "2673"]
[BlackElo "2377"]
[Result "1-0"]
[Round "1"]
[TimeControl "180+1"]
[Date "2023.08.22"]
[WhiteClock "0:00:35"]
[BlackClock "0:00:00"]
[Board "118"]

1. d4 {[%clk 0:02:59]}  Nf6 {[%clk 0:02:58]} 2. Bg5 {[%clk 0:02:58]}  d5 {[%clk 0:02:57]} 3. e3 {[%clk 0:02:56]}  c5 {[%clk 0:02:55]} 4. c3 {[%clk 0:02:56]}  e6 {[%clk 0:02:53]} 5. Nd2 {[%clk 0:02:56]}  cxd4 {[%clk 0:02:49]} 6. exd4 {[%clk 0:02:56]}  Be7 {[%clk 0:02:48]} 7. Bd3 {[%clk 0:02:56]}  O-O {[%clk 0:02:47]} 8. Ngf3 {[%clk 0:02:47]}  Nc6 {[%clk 0:02:45]} 9. Qe2 {[%clk 0:02:46]}  a6 {[%clk 0:02:02]} 10. h4 {[%clk 0:02:42]}  b5 {[%clk 0:01:53]} 11. a3 {[%clk 0:02:39]}  Rb8 {[%clk 0:01:50]} 12. Nf1 {[%clk 0:02:34]}  Bd7 {[%clk 0:01:36]} 13. Ng3 {[%clk 0:02:26]}  a5 {[%clk 0:01:36]} 14. b4 {[%clk 0:02:23]}  axb4 {[%clk 0:01:34]} 15. axb4 {[%clk 0:02:24]}  Ra8 {[%clk 0:01:01]} 16. O-O {[%clk 0:02:22]}  Rxa1 {[%clk 0:00:59]} 17. Rxa1 {[%clk 0:02:23]}  Qc7 {[%clk 0:00:45]} 18. Bxb5 {[%clk 0:02:18]}  h6 {[%clk 0:00:42]} 19. Bd2 {[%clk 0:02:05]}  Rb8 {[%clk 0:00:33]} 20. Bd3 {[%clk 0:02:04]}  Bd6 {[%clk 0:00:30]} 21. Nf1 {[%clk 0:01:58]}  e5 {[%clk 0:00:30]} 22. dxe5 {[%clk 0:01:40]}  Nxe5 {[%clk 0:00:31]} 23. Nxe5 {[%clk 0:01:41]}  Bxe5 {[%clk 0:00:28]} 24. Rc1 {[%clk 0:01:41]}  Re8 {[%clk 0:00:12]} 25. Qd1 {[%clk 0:01:41]}  Bg4 {[%clk 0:00:11]} 26. Qc2 {[%clk 0:01:37]}  Ne4 {[%clk 0:00:11]} 27. Bxe4 {[%clk 0:01:25]}  dxe4 {[%clk 0:00:12]} 28. c4 {[%clk 0:01:15]}  Be2 {[%clk 0:00:11]} 29. Be3 {[%clk 0:01:09]}  Bd3 {[%clk 0:00:10]} 30. Qb3 {[%clk 0:01:09]}  Qe7 {[%clk 0:00:10]} 31. g3 {[%clk 0:01:05]}  Be2 {[%clk 0:00:04]} 32. Re1 {[%clk 0:00:48]}  Bf3 {[%clk 0:00:04]} 33. Nd2 {[%clk 0:00:48]}  Qd7 {[%clk 0:00:02]} 34. Nxf3 {[%clk 0:00:38]}  exf3 {[%clk 0:00:03]} 35. Qd1 {[%clk 0:00:38]}  Qg4 {[%clk 0:00:02]} 36. Bf4 {[%clk 0:00:39]}  f6 {[%clk 0:00:02]} 37. Bxe5 {[%clk 0:00:39]}  fxe5 {[%clk 0:00:02]} 38. Qd5+ {[%clk 0:00:37]}  Kh8 {[%clk 0:00:00]} 39. Qe4 {[%clk 0:00:35]} 1-0


[Site "https://www.chess.com"]

[Event "Titled Tuesday Blitz August 22 Late 2023"]
[White "Annaberdiyev, Meylis"]
[Black "Fernandez, Maria Florencia"]
[WhiteFideId "14000563"]
[BlackFideId "116459"]
[WhiteElo "2670"]
[BlackElo "2376"]
[Result "1-0"]
[Round "1"]
[TimeControl "180+1"]
[Date "2023.08.22"]
[WhiteClock "0:00:08"]
[BlackClock "0:00:00"]
[Board "120"]

1. e4 {[%clk 0:02:59]}  d6 {[%clk 0:02:53]} 2. d4 {[%clk 0:02:54]}  Nf6 {[%clk 0:02:48]} 3. Nc3 {[%clk 0:02:54]}  g6 {[%clk 0:02:44]} 4. Nf3 {[%clk 0:02:54]}  Bg7 {[%clk 0:02:43]} 5. Be2 {[%clk 0:02:54]}  c6 {[%clk 0:02:42]} 6. a4 {[%clk 0:02:53]}  O-O {[%clk 0:02:41]} 7. O-O {[%clk 0:02:53]}  a5 {[%clk 0:02:35]} 8. h3 {[%clk 0:02:17]}  Na6 {[%clk 0:02:20]} 9. Bg5 {[%clk 0:02:14]}  h6 {[%clk 0:02:09]} 10. Be3 {[%clk 0:02:14]}  Nb4 {[%clk 0:01:56]} 11. Nd2 {[%clk 0:02:13]}  e5 {[%clk 0:01:34]} 12. dxe5 {[%clk 0:01:49]}  dxe5 {[%clk 0:01:28]} 13. Ncb1 {[%clk 0:01:49]}  Be6 {[%clk 0:01:23]} 14. c3 {[%clk 0:01:47]}  Nd3 {[%clk 0:01:17]} 15. Qc2 {[%clk 0:01:37]}  Nf4 {[%clk 0:01:14]} 16. Bc4 {[%clk 0:01:37]}  Qe7 {[%clk 0:01:01]} 17. Re1 {[%clk 0:01:31]}  N6h5 {[%clk 0:00:55]} 18. Bf1 {[%clk 0:01:14]}  f5 {[%clk 0:00:31]} 19. Kh2 {[%clk 0:01:04]}  g5 {[%clk 0:00:21]} 20. exf5 {[%clk 0:00:47]}  Bxf5 {[%clk 0:00:20]} 21. Ne4 {[%clk 0:00:48]}  Qe6 {[%clk 0:00:14]} 22. Nbd2 {[%clk 0:00:43]}  Qg6 {[%clk 0:00:11]} 23. g4 {[%clk 0:00:37]}  Bxe4 {[%clk 0:00:11]} 24. Qxe4 {[%clk 0:00:37]}  Qxe4 {[%clk 0:00:07]} 25. Nxe4 {[%clk 0:00:38]}  Nf6 {[%clk 0:00:08]} 26. Nxf6+ {[%clk 0:00:27]}  Bxf6 {[%clk 0:00:09]} 27. Rad1 {[%clk 0:00:28]}  Rfd8 {[%clk 0:00:08]} 28. Bb6 {[%clk 0:00:27]}  Rxd1 {[%clk 0:00:06]} 29. Rxd1 {[%clk 0:00:28]}  Kf7 {[%clk 0:00:03]} 30. Bc4+ {[%clk 0:00:27]}  Kg6 {[%clk 0:00:04]} 31. Rd6 {[%clk 0:00:26]}  Kg7 {[%clk 0:00:03]} 32. Rd7+ {[%clk 0:00:26]}  Kg6 {[%clk 0:00:03]} 33. Bf7+ {[%clk 0:00:23]}  Kg7 {[%clk 0:00:03]} 34. Be6+ {[%clk 0:00:24]}  Kh8 {[%clk 0:00:03]} 35. Bf5 {[%clk 0:00:24]}  Re8 {[%clk 0:00:01]} 36. Rxb7 {[%clk 0:00:23]}  Kg8 {[%clk 0:00:02]} 37. Bxa5 {[%clk 0:00:23]}  Nd5 {[%clk 0:00:02]} 38. Bb6 {[%clk 0:00:16]}  e4 {[%clk 0:00:02]} 39. a5 {[%clk 0:00:16]}  Ra8 {[%clk 0:00:02]} 40. Bc5 {[%clk 0:00:14]}  Be5+ {[%clk 0:00:03]} 41. Kg1 {[%clk 0:00:13]}  Nf4 {[%clk 0:00:03]} 42. Bxe4 {[%clk 0:00:13]}  Rxa5 {[%clk 0:00:02]} 43. Ba3 {[%clk 0:00:10]}  Ne2+ {[%clk 0:00:01]} 44. Kg2 {[%clk 0:00:10]}  Nf4+ {[%clk 0:00:02]} 45. Kf3 {[%clk 0:00:10]}  Nxh3 {[%clk 0:00:03]} 46. Bxc6 {[%clk 0:00:09]}  Ra6 {[%clk 0:00:02]} 47. Bd5+ {[%clk 0:00:09]}  Kh8 {[%clk 0:00:02]} 48. Re7 {[%clk 0:00:08]}  Bg7 {[%clk 0:00:02]} 49. Re8+ {[%clk 0:00:08]}  Kh7 {[%clk 0:00:02]} 50. Be4+ {[%clk 0:00:08]}  Rg6 {[%clk 0:00:00]} 51. Re6 {[%clk 0:00:08]} 1-0


[Site "https://www.chess.com"]

[Event "Titled Tuesday Blitz August 22 Late 2023"]
[White "Karttunen, Mika"]
[Black "Delorme, Laurie"]
[WhiteFideId "502081"]
[BlackFideId "630829"]
[WhiteElo "2659"]
[BlackElo "2374"]
[Result "0-1"]
[Round "1"]
[TimeControl "180+1"]
[Date "2023.08.22"]
[WhiteClock "0:00:14"]
[BlackClock "0:00:06"]
[Board "122"]

1. e4 {[%clk 0:02:58]}  c5 {[%clk 0:02:58]} 2. Nf3 {[%clk 0:02:57]}  Nc6 {[%clk 0:02:57]} 3. Bb5 {[%clk 0:02:56]}  e6 {[%clk 0:02:57]} 4. Bxc6 {[%clk 0:02:56]}  bxc6 {[%clk 0:02:57]} 5. d3 {[%clk 0:02:54]}  Ne7 {[%clk 0:02:56]} 6. b3 {[%clk 0:02:50]}  d6 {[%clk 0:02:53]} 7. e5 {[%clk 0:02:43]}  f6 {[%clk 0:02:53]} 8. exd6 {[%clk 0:02:40]}  Nf5 {[%clk 0:02:52]} 9. g4 {[%clk 0:02:14]}  Nd4 {[%clk 0:02:45]} 10. g5 {[%clk 0:01:50]}  Bxd6 {[%clk 0:02:40]} 11. Nxd4 {[%clk 0:01:44]}  cxd4 {[%clk 0:02:40]} 12. Qh5+ {[%clk 0:01:44]}  g6 {[%clk 0:02:38]} 13. Qh6 {[%clk 0:01:44]}  Kf7 {[%clk 0:02:13]} 14. Nd2 {[%clk 0:01:37]}  Bb4 {[%clk 0:01:51]} 15. Ke2 {[%clk 0:01:24]}  Bxd2 {[%clk 0:01:44]} 16. Bxd2 {[%clk 0:01:24]}  e5 {[%clk 0:01:38]} 17. gxf6 {[%clk 0:00:59]}  Qxf6 {[%clk 0:01:39]} 18. Raf1 {[%clk 0:00:49]}  Bf5 {[%clk 0:01:19]} 19. f3 {[%clk 0:00:44]}  a5 {[%clk 0:01:11]} 20. a4 {[%clk 0:00:44]}  c5 {[%clk 0:01:02]} 21. h4 {[%clk 0:00:43]}  Rae8 {[%clk 0:00:36]} 22. h5 {[%clk 0:00:41]}  Be6 {[%clk 0:00:30]} 23. Rfg1 {[%clk 0:00:34]}  Bd5 {[%clk 0:00:28]} 24. Rg3 {[%clk 0:00:32]}  Reg8 {[%clk 0:00:18]} 25. Rhg1 {[%clk 0:00:32]}  Ke8 {[%clk 0:00:17]} 26. Qg5 {[%clk 0:00:29]}  Ke7 {[%clk 0:00:14]} 27. Qh6 {[%clk 0:00:25]}  Kd7 {[%clk 0:00:12]} 28. Bg5 {[%clk 0:00:24]}  Qe6 {[%clk 0:00:12]} 29. Bd2 {[%clk 0:00:24]}  Kc6 {[%clk 0:00:12]} 30. Qg5 {[%clk 0:00:22]}  h6 {[%clk 0:00:11]} 31. Qg4 {[%clk 0:00:21]}  Qxg4 {[%clk 0:00:08]} 32. fxg4 {[%clk 0:00:22]}  g5 {[%clk 0:00:09]} 33. Rf1 {[%clk 0:00:22]}  Rf8 {[%clk 0:00:09]} 34. Rgg1 {[%clk 0:00:22]}  Be6 {[%clk 0:00:05]} 35. Bxa5 {[%clk 0:00:21]}  Kd5 {[%clk 0:00:05]} 36. Bd2 {[%clk 0:00:18]}  Rxf1 {[%clk 0:00:05]} 37. Kxf1 {[%clk 0:00:19]}  Rf8+ {[%clk 0:00:05]} 38. Ke2 {[%clk 0:00:19]}  e4 {[%clk 0:00:05]} 39. dxe4+ {[%clk 0:00:19]}  Kxe4 {[%clk 0:00:06]} 40. Rg3 {[%clk 0:00:18]}  c4 {[%clk 0:00:05]} 41. bxc4 {[%clk 0:00:17]}  Bxc4+ {[%clk 0:00:06]} 42. Rd3 {[%clk 0:00:16]}  Bxd3+ {[%clk 0:00:06]} 43. cxd3+ {[%clk 0:00:17]}  Kd5 {[%clk 0:00:07]} 44. a5 {[%clk 0:00:18]}  Ra8 {[%clk 0:00:07]} 45. Kf3 {[%clk 0:00:18]}  Ra6 {[%clk 0:00:06]} 46. Ke2 {[%clk 0:00:18]}  Ke5 {[%clk 0:00:04]} 47. Kf3 {[%clk 0:00:18]}  Kd5 {[%clk 0:00:04]} 48. Ke2 {[%clk 0:00:19]}  Rf6 {[%clk 0:00:04]} 49. Bc1 {[%clk 0:00:15]}  Kc5 {[%clk 0:00:05]} 50. Bd2 {[%clk 0:00:16]}  Kb5 {[%clk 0:00:05]} 51. Ke1 {[%clk 0:00:14]}  Rf3 {[%clk 0:00:04]} 52. Ke2 {[%clk 0:00:15]}  Rg3 {[%clk 0:00:04]} 53. Kf2 {[%clk 0:00:14]}  Rxg4 {[%clk 0:00:05]} 54. Kf3 {[%clk 0:00:15]}  Rh4 {[%clk 0:00:05]} 55. Kg3 {[%clk 0:00:15]}  Rxh5 {[%clk 0:00:06]} 56. Be1 {[%clk 0:00:15]}  Rh1 {[%clk 0:00:06]} 57. Bf2 {[%clk 0:00:16]}  Rd1 {[%clk 0:00:05]} 58. Kg4 {[%clk 0:00:15]}  Rxd3 {[%clk 0:00:05]} 59. Kh5 {[%clk 0:00:15]}  Kxa5 {[%clk 0:00:05]} 60. Kxh6 {[%clk 0:00:16]}  g4 {[%clk 0:00:06]} 61. Kg5 {[%clk 0:00:16]}  g3 {[%clk 0:00:06]} 62. Bg1 {[%clk 0:00:14]}  Rd1 {[%clk 0:00:06]} 0-1


[Site "https://www.chess.com"]

[Event "Titled Tuesday Blitz August 22 Late 2023"]
[White "Baghdasaryan, Vahe"]
[Black "Kleiman, Jake"]
[WhiteFideId "13303139"]
[BlackFideId "2020041"]
[WhiteElo "2368"]
[BlackElo "2658"]
[Result "0-1"]
[Round "1"]
[TimeControl "180+1"]
[Date "2023.08.22"]
[WhiteClock "0:00:12"]
[BlackClock "0:00:08"]
[Board "125"]

1. e4 {[%clk 0:03:00]}  e5 {[%clk 0:02:59]} 2. Nf3 {[%clk 0:03:00]}  Nc6 {[%clk 0:02:56]} 3. Nc3 {[%clk 0:03:00]}  Nf6 {[%clk 0:01:50]} 4. a3 {[%clk 0:02:58]}  d5 {[%clk 0:01:49]} 5. exd5 {[%clk 0:02:56]}  Nxd5 {[%clk 0:01:50]} 6. Bb5 {[%clk 0:02:57]}  Nxc3 {[%clk 0:01:50]} 7. bxc3 {[%clk 0:02:58]}  Bd7 {[%clk 0:01:50]} 8. O-O {[%clk 0:02:50]}  Bd6 {[%clk 0:01:50]} 9. Re1 {[%clk 0:02:46]}  O-O {[%clk 0:01:39]} 10. Bxc6 {[%clk 0:02:10]}  Bxc6 {[%clk 0:01:40]} 11. Nxe5 {[%clk 0:02:10]}  Bd5 {[%clk 0:01:37]} 12. d4 {[%clk 0:02:04]}  c5 {[%clk 0:01:27]} 13. c4 {[%clk 0:01:18]}  Bxe5 {[%clk 0:01:25]} 14. Rxe5 {[%clk 0:01:19]}  Bxc4 {[%clk 0:01:21]} 15. Rxc5 {[%clk 0:01:19]}  b5 {[%clk 0:01:09]} 16. Be3 {[%clk 0:01:14]}  Qd7 {[%clk 0:01:03]} 17. a4 {[%clk 0:01:08]}  a6 {[%clk 0:00:58]} 18. Qf3 {[%clk 0:00:55]}  Rac8 {[%clk 0:00:57]} 19. h4 {[%clk 0:00:45]}  bxa4 {[%clk 0:00:40]} 20. h5 {[%clk 0:00:35]}  Rxc5 {[%clk 0:00:34]} 21. dxc5 {[%clk 0:00:36]}  h6 {[%clk 0:00:33]} 22. Qg3 {[%clk 0:00:34]}  Kh7 {[%clk 0:00:29]} 23. c3 {[%clk 0:00:26]}  Bb3 {[%clk 0:00:23]} 24. Bd4 {[%clk 0:00:26]}  f6 {[%clk 0:00:23]} 25. Qg6+ {[%clk 0:00:24]}  Kg8 {[%clk 0:00:23]} 26. Qd3 {[%clk 0:00:20]}  Qc6 {[%clk 0:00:18]} 27. f3 {[%clk 0:00:19]}  Re8 {[%clk 0:00:18]} 28. Qg6 {[%clk 0:00:19]}  Bf7 {[%clk 0:00:16]} 29. Qg3 {[%clk 0:00:18]}  Re2 {[%clk 0:00:14]} 30. Qb8+ {[%clk 0:00:18]}  Kh7 {[%clk 0:00:14]} 31. Qb1+ {[%clk 0:00:18]}  Kg8 {[%clk 0:00:13]} 32. Qf1 {[%clk 0:00:18]}  Re8 {[%clk 0:00:11]} 33. Qf2 {[%clk 0:00:17]}  Bxh5 {[%clk 0:00:08]} 34. g4 {[%clk 0:00:16]}  Bf7 {[%clk 0:00:08]} 35. Qc2 {[%clk 0:00:12]}  Qxf3 {[%clk 0:00:07]} 36. Rxa4 {[%clk 0:00:11]}  Qxg4+ {[%clk 0:00:07]} 37. Qg2 {[%clk 0:00:12]}  Qd1+ {[%clk 0:00:07]} 38. Kh2 {[%clk 0:00:12]}  Qxa4 {[%clk 0:00:07]} 39. Bxf6 {[%clk 0:00:11]}  Qf4+ {[%clk 0:00:08]} 40. Qg3 {[%clk 0:00:10]}  Qxf6 {[%clk 0:00:09]} 41. Kg1 {[%clk 0:00:10]}  Re2 {[%clk 0:00:08]} 42. Qf2 {[%clk 0:00:11]}  Qxf2+ {[%clk 0:00:07]} 43. Kh1 {[%clk 0:00:12]}  Qg2# {[%clk 0:00:08]} 0-1


[Site "https://www.chess.com"]